Workbook

Sheet MENU

Sheet Photos et plaquettes
B3: Edgar Eggen | F3: plaquette dorée
B4: 1. sur 11 en 2022 avec 656 points | F4: 1 fois : 70 mm x 20 mm | J4: 1. sur 00 en 2025 avec 000 points
B5: Georges Pharisa
B6: 2. sur 11 en 2022 avec 651 points | J6: 2. sur 00 en 2025 avec 000 points
B8: Marcel Blanc
B9: 1. sur 11 en 2023 avec 677 points | J9: 1. sur 00 en 2026 avec 000 points
B10: André Pharisa
B11: 2. sur 11 en 2023 avec 585 points | J11: 2. sur 00 en 2026 avec 000 points
F12: plaquette argentée
B13: Marcel Blanc | F13: 1 fois : 70 mm x 20 mm
B14: 1. sur 10 en 2024 avec 587 points | J14: 1. sur 00 en 2027 avec 000 points
B15: Georges Pharisa
B16: 2. sur 10 en 2024 avec 564 points | J16: 2. sur 00 en 2027 avec 000 points
B19: Fourniture et gravure des plaquettes annuelles, par Mister Minit (Migros de Bulle)
B20: Fr. 30.- pour les plaquettes ci-dessus
B21: (à la charge du donateur ou de sa succession)
H23: Tireurs vétérans de Bas-Intyamon
B24: Cristal de roche du St-Gothard
B25: sur miroir de cristal et base en frêne | H25: Tir fédéral en campagne | I25: Giron de Montsalvens | J25: 33 % passe vétérans (T,C.) | K25: concours annuel (V) | L25: concours individuel (V) | M25: MAXIMUM POSSIBLE
B26: offert par Jean Pharisa, 1939, Bulle | H26: 72 | I26: 150 | J26: 165 | K26: 160 | L26: 200 | M26: 747
B33: Plaquettes finales à la charge du donateur ou de sa succession
G34: 100 x 20 mm | J34: Remise définitive en 2029 pour la meilleure moyenne
G35: dorée | J35: des six ans à ………. ……., avec 0000 points
G39: 100 x 20 mm | J39: Remise pour un an en 2028 pour la meilleure moyenne
G40: argentée | J40: des six ans à ………. ……., avec 0000 points

Sheet Palmarès Bas-Intyamon
B1: Challenge "tireurs vétérans de Bas Intyamon" offert par Jean Pharisa, 1939, à Bulle
B3: 1 | C3: 5 tirs pris en compte (voir ci-dessous). En cas d'égalité, le résultat au TFC départagera.
B4: 2 | C4: Le tireur classé au 2è rang détiendra le challenge à partir de la soirée des résultats jusqu'à l'assemblée de printemps
B5: 3 | C5: Le tireur classé au 1er rang détiendra le challenge à partir de ce moment et jusqu'à la prochaine soirée des résultats
B6: 4 | C6: Le challenge est mis en compétition durant 6 ans (de 2022 à 2027)
B7: 5 | C7: En 2028, il sera remis pour une année au tireur classé 2è sur la moyenne des 6 ans
B8: 6 | C8: En 2029, il sera remis définitivement au tireur classé au 1er rang sur la moyenne des 6 ans
B10: Concours interne 2025 | G10: Handicap pour carabines | H10: Tir fédéral en campagne | I10: 1/3 passe cible vétéran (au Tessin) | J10: Concours cantonal des vétérans | K10: Concours individuel fédéral vétérans | L10: Giron de Montsalvens | M10: TOTAL
G11: -20 | H11: 72 | I11: 165 | J11: 160 | K11: 200 | L11: 150 | M11: =SUM(H11:L11) -> 747
B12: 1 | C12: Blanc | D12: Marcel | E12: Estavannens | F12: 1956 | M12: =SUM(G12:L12) -> 0
B13: 2 | C13: Currat | D13: Henri | E13: Grandvillard | F13: 1963 | M13: 0
B14: 3 | C14: Eggen | D14: Edgar | E14: Villars-s-Mont | F14: 1958 | M14: 0
B15: 4 | C15: Geinoz | D15: Raymond | E15: Enney | F15: 1959 | M15: 0
B16: 5 | C16: Jaquet | D16: Raphaël | E16: Estavannens | F16: 1949 | M16: 0
B17: 6 | C17: Pharisa | D17: André | E17: Grandvillard | F17: 1945 | M17: 0
B18: 7 | C18: Pharisa | D18: Emile | E18: Estavannens | F18: 1943 | M18: 0
B19: 8 | C19: Pharisa | D19: Georges | E19: Grandvillard | F19: 1950 | M19: 0
B20: 9 | C20: Pharisa | D20: Jean | E20: Bulle | F20: 1939 | M20: 0
B21: 10 | C21: Yenni | D21: Chrisitan | E21: Grandvillard | F21: 1969 | M21: 0
B22: 11
B23: 12
B25: Palmarès des gagnants du challenge
B27: 2022 | D27: 2023 | F27: 2024 | H27: 2025 | J27: 2026 | L27: 2027
B28: 1er - Edgar Eggen | D28: 1er Marcel Blanc | F28: 1er Marcel Blanc
B29: 656 points | D29: 677 points | F29: 587 points
B30: 2è - Georges Pharisa | D30: 2è André Pharisa | F30: Georges Pharisa
B31: 651 points | D31: 585 points | F31: 564 points
B33: Classement général | G33: 2022 | H33: 2023 | I33: 2024 | J33: 2025 | K33: 2026 | L33: 2027 | M33: TOTAL
B35: 1 | C35: Blanc | D35: Marcel | E35: Estavannens | F35: 1956 | G35: 627 | H35: 677 | I35: 587 | M35: =SUM(G35:L35) -> 1891
B36: 2 | C36: Eggen | D36: Edgar | E36: Villars-s-Mont | F36: 1958 | G36: 656 | H36: 512 | I36: 447 | M36: 1615
B37: 3 | C37: Pharisa | D37: André | E37: Grandvillard | F37: 1945 | G37: 575 | H37: 585 | I37: 530 | M37: 1690
B38: 4 | C38: Pharisa | D38: Georges | E38: Grandvillard | F38: 1950 | G38: 651 | H38: 468 | I38: 564 | M38: 1683
B39: 5 | C39: Geinoz | D39: Raymond | E39: Enney | F39: 1959 | G39: 447 | H39: 431 | I39: pas concouru | M39: 878
B40: 6 | C40: Pharisa | D40: Jean | E40: Bulle | F40: 1939 | G40: 536 | H40: 325 | I40: 337 | M40: 1198
B41: 7 | C41: Pharisa | D41: Emile | E41: Estavannens | F41: 1943 | G41: 295 | H41: 450 | I41: 168 | M41: 913
B42: 8 | C42: Currat | D42: Henri | E42: Grandvillard | F42: 1963 | G42: pss concouru | H42: 509 | I42: 414 | M42: 923
B43: 9 | C43: Jaquet | D43: Raphaël | E43: Estavannens | F43: 1949 | G43: 196 | H43: 55 | I43: 101 | M43: 352
B44: 10 | C44: Grandjean | D44: Roland | E44: Grandvillard | F44: 1941 | G44: 148 | H44: 56 | I44: a démissionné | M44: 204
B45: 11 | C45: Yenni | D45: Christian | E45: Grandvillard | F45: 1969 | G45: pss concouru | H45: pss concouru | I45: 369
B46: 12
B48: Tous les résultats concernant ce challenge sont disponibles sous :
B49: https://www.estavannens.com/resultats_divers.html
B68: Edgar Eggen
B69: 1er sur 11 en 2022 avec 656 points | J69: 2025
B70: Georges Pharisa
B71: 2è sur 11 en 2022 avec 651 points
B73: Marcel Blanc
B74: 1er sur 11 en 2023 avec 677 points | J74: 2026
B75: André Pharisa
B76: 2ème sur 11 en 2023 avec 585 points
B78: Marcel Blanc
B79: 1er sur 10 en 2024 avec 587 points | J79: 2027
B80: Georges Pharisa
B81: 2ème sur 10 en 2024 avec 564 points
F83: Groupe de cristal de roche quartz hyalin, c'est-à-dire transparent comme le verre région du St-Gothard
B84: Remise pour un an en 2028 au tireur classé 2è | J84: Remise définitive en 2029 pour la meilleure moyenne
B85: sur six ans à ………. ……., avec 0000 points | J85: des six ans à ………. ……., avec 0000 points

Sheet Palmarès complet
B2: Concours interne "vétérans" 2022 | G2: Handicap pour carabines et standards | H2: Tir fédéral en campagne | I2: 33 % passe vétérans (URI) | J2: concours cantonal des vétérans | K2: concours individuel fédéral vétérans | L2: Giron de Montsalvens | M2: TOTAL
H3: 72 | I3: 165 | J3: 160 | K3: 200 | L3: 150 | M3: 747
B4: 1 | C4: Eggen | D4: Edgar | E4: Villars-s-Mont | F4: 1958 | G4: -30 | H4: 62 | I4: 151 | J4: 142 | K4: 187 | L4: 144 | M4: =SUM(G4:L4) -> 656
B5: 2 | C5: Pharisa | D5: Georges | E5: Grandvillard | F5: 1950 | G5: -30 | H5: 61 | I5: 142 | J5: 152 | K5: 186 | L5: 140 | M5: 651
B6: 3 | C6: Blanc | D6: Marcel | E6: Estavannens | F6: 1956 | H6: 60 | I6: 117 | J6: 142 | K6: 171 | L6: 137 | M6: =SUM(G6:L6) -> 627
B7: 4 | C7: Pharisa | D7: André | E7: Grandvillard | F7: 1945 | H7: 58 | I7: 128 | J7: 131 | K7: 143 | L7: 115 | M7: 575
B8: 5 | C8: Pharisa | D8: Jean | E8: Bulle | F8: 1939 | H8: 3 | I8: 103 | J8: 130 | K8: 176 | L8: 124 | M8: 536
B9: 6 | C9: Geinoz | D9: Raymond | E9: Enney | F9: 1959 | H9: 56 | J9: 128 | K9: 134 | L9: 129 | M9: 447
B10: 7 | C10: Pharisa | D10: Emile | E10: Estavannens | F10: 1943 | K10: 166 | L10: 129 | M10: 295
B11: 8 | C11: Jaquet | D11: Raphaël | E11: Estavannens | F11: 1949 | H11: 56 | L11: 140 | M11: 196
B12: 9 | C12: Grandjean | D12: Roland | E12: Grandvillard | F12: 1941 | H12: 54 | J12: 94 | M12: 148
B13: 10
B14: 11
B15: 12
B18: voir sous : | G18: CHALLENGE JEAN PHARISA
B19: https://www.estavannens.com/resultats_divers.html
B20: cliquer sur le 3ème groupes d'images (4 logos)
B23: Concours interne "vétérans" 2023 | G23: Handicap pour carabines et standards | H23: Tir fédéral en campagne | I23: 33 % passe vétérans (Lungern) | J23: concours cantonal des vétérans | K23: concours individuel fédéral vétérans | L23: Giron de Montsalvens | M23: TOTAL
H24: 72 | I24: 165 | J24: 160 | K24: 200 | L24: 150 | M24: 747
B25: 1 | C25: Blanc | D25: Marcel | E25: Estavannens | F25: 1956 | H25: 66 | I25: 142 | J25: 148 | K25: 188 | L25: 123 | M25: =SUM(H25:L25) -> 667
B26: 2 | C26: Pharisa | D26: André | E26: Grandvillard | F26: 1945 | H26: 57 | I26: 110 | J26: 130 | K26: 165 | L26: 123 | M26: =SUM(H26:L26) -> 585
B27: 3 | C27: Eggen | D27: Edgar | E27: Villars-s-Mont | F27: 1958 | G27: -30 | H27: 68 | I27: 139 | K27: 171 | L27: 134 | M27: =SUM(H27:L27) -> 512
B28: 4 | C28: Currat | D28: Henri | E28: Grandvillard | F28: 1963 | G28: -30 | H28: 58 | I28: 137 | K28: 175 | L28: 139 | M28: =SUM(H28:L28) -> 509
B29: 5 | C29: Pharisa | D29: Georges | E29: Grandvillard | F29: 1950 | G29: -30 | H29: 55 | I29: 145 | K29: 166 | L29: 132 | M29: =SUM(G29:L29) -> 468
B30: 6 | C30: Pharisa | D30: Emile | E30: Estavannens | F30: 1943 | H30: 55 | J30: 132 | K30: 134 | L30: 128 | M30: =SUM(H30:L30) -> 449
B31: 7 | C31: Geinoz | D31: Raymond | E31: Enney | F31: 1959 | H31: 58 | I31: 119 | K31: 142 | L31: 112 | M31: =SUM(H31:L31) -> 431
B32: 8 | C32: Pharisa | D32: Jean | E32: Bulle | F32: 1939 | H32: 55 | I32: maladie | J32: maladie | K32: 158 | L32: 112 | M32: =SUM(G32:L32) -> 325
B33: 9 | C33: Jaquet | D33: Raphaël | E33: Estavannens | F33: 1949 | H33: 55 | I33: maladie | J33: maladie | K33: maladie | L33: maladie | M33: =SUM(H33:L33) -> 55
B34: 10
B35: 11
B36: 12
B41: Concours interne "vétérans" 2024 | G41: Handicap pour carabines et standards | H41: Tir fédéral en campagne | I41: passe cible vétéran (Langenthal) | J41: concours cantonal des vétérans | K41: concours individuel fédéral vétérans | L41: Giron de Montsalvens | M41: TOTAL
H42: 72 | I42: 80 | J42: 160 | K42: 200 | L42: 150 | M42: =SUM(H42:L42) -> 662
B43: 1 | C43: Blanc | D43: Marcel | E43: Estavannens | F43: 1956 | H43: 65 | I43: 67 | J43: 131 | K43: 183 | L43: 141 | M43: =SUM(G43:L43) -> 587
B44: 2 | C44: Pharisa | D44: Georges | E44: Grandvillard | F44: 1950 | G44: -20 | H44: 57 | I44: 73 | J44: 143 | K44: 172 | L44: 139 | M44: 564
B45: 3 | C45: Pharisa | D45: André | E45: Grandvillard | F45: 1945 | H45: 56 | I45: 37 | J45: 131 | K45: 177 | L45: 129 | M45: 530
B46: 4 | C46: Eggen | D46: Edgar | E46: Villars-s-Mont | F46: 1958 | H46: 64 | I46: 70 | K46: 178 | L46: 135 | M46: 447
B47: 5 | C47: Currat | D47: Henri | E47: Grandvillard | F47: 1963 | H47: 65 | I47: 69 | K47: 183 | L47: 127 | M47: 444
B48: 6 | C48: Yenni | D48: Christian | E48: Grandvillard | F48: 1969 | H48: 59 | K48: 176 | L48: 134 | M48: 369
B49: 7 | C49: Pharisa | D49: Jean | E49: Bulle | F49: 1939 | H49: 47 | I49: maladie | J49: 129 | K49: 161 | L49: maladie | M49: 337
B50: 8 | C50: Pharisa | D50: Emile | E50: Estavannens | F50: 1943 | H50: 60 | J50: 108 | M50: 168
B51: 9 | C51: Jaquet | D51: Raphaël | E51: Estavannens | F51: 1949 | H51: 52 | I51: 49 | J51: maladie | K51: maladie | L51: maladie | M51: 101
B52: 10 | C52: Geinoz | D52: Raymond | E52: Enney | F52: 1959 | H52: maladie | I52: maladie | J52: maladie | K52: maladie | L52: maladie | M52: 0
B53: 11
B54: 12
B62: Concours interne "vétérans" 2025 | G62: Handicap pour carabines et standards | H62: Tir fédéral en campagne | I62: 1/3 passe vétérans au Tessin | J62: concours cantonal des vétérans | K62: concours individuel fédéral vétérans | L62: Giron de Montsalvens | M62: TOTAL
H63: 72 | I63: 165 | J63: 160 | K63: 200 | L63: 150 | M63: =SUM(H63:L63) -> 747
B64: 1 | C64: Blanc | D64: Marcel | E64: Estavannens | F64: 1956 | M64: =SUM(G64:K64) -> 0
B65: 2 | C65: Currat | D65: Henri | E65: Grandvillard | F65: 1963 | M65: 0
B66: 3 | C66: Eggen | D66: Edgar | E66: Villars-s-Mont | F66: 1958 | M66: 0
B67: 4 | C67: Geinoz | D67: Raymond | E67: Enney | F67: 1959 | M67: 0
B68: 5 | C68: Jaquet | D68: Raphaël | E68: Estavannens | F68: 1949 | M68: 0
B69: 6 | C69: Pharisa | D69: André | E69: Grandvillard | F69: 1945 | M69: 0
B70: 7 | C70: Pharisa | D70: Emile | E70: Estavannens | F70: 1943 | M70: 0
B71: 8 | C71: Pharisa | D71: Georges | E71: Grandvillard | F71: 1950 | G71: -20 | M71: -20
B72: 9 | C72: Pharisa | D72: Jean | E72: Bulle | F72: 1939 | M72: 0
B73: 10 | C73: Yenni | D73: Christian | E73: Grandvillard | F73: 1969
B74: 11
B75: 12
B80: Concours interne "vétérans" 2026 | G80: Handicap pour carabines et standards | H80: Tir fédéral en campagne | I80: 1/3 passe vétérans | J80: concours cantonal des vétérans | K80: concours individuel fédéral vétérans | L80: Giron de Montsalvens | M80: TOTAL
H81: 72 | I81: 165 | J81: 160 | K81: 200 | L81: 150 | M81: 747
B82: 1 | C82: Blanc | D82: Marcel | E82: Estavannens | F82: 1956 | M82: =SUM(G82:K82) -> 0
B83: 2 | C83: Currat | D83: Henri | E83: Grandvillard | F83: 1963 | M83: 0
B84: 3 | C84: Eggen | D84: Edgar | E84: Villars-s-Mont | F84: 1958 | M84: 0
B85: 4 | C85: Geinoz | D85: Raymond | E85: Enney | F85: 1959 | M85: 0
B86: 5 | C86: Jaquet | D86: Raphaël | E86: Estavannens | F86: 1949 | M86: 0
B87: 6 | C87: Pharisa | D87: André | E87: Grandvillard | F87: 1945 | M87: 0
B88: 7 | C88: Pharisa | D88: Emile | E88: Estavannens | F88: 1943 | M88: 0
B89: 8 | C89: Pharisa | D89: Georges | E89: Grandvillard | F89: 1950 | G89: -20 | M89: -20
B90: 9 | C90: Pharisa | D90: Jean | E90: Bulle | F90: 1939 | M90: 0
B91: 10 | C91: Yenni | D91: Christian | E91: Grandvillard | F91: 1969
B92: 11
B93: 12
B100: Concours interne "vétérans" 2027 | G100: Handicap pour carabines et standards | H100: Tir fédéral en campagne | I100: 1/3 passe vétérans | J100: concours cantonal des vétérans | K100: concours individuel fédéral vétérans | L100: Giron de Montsalvens | M100: TOTAL
H101: 72 | I101: 165 | J101: 160 | K101: 200 | L101: 150 | M101: 747
B102: 1 | C102: Blanc | D102: Marcel | E102: Estavannens | F102: 1956 | M102: =SUM(G102:K102) -> 0
B103: 2 | C103: Currat | D103: Henri | E103: Grandvillard | F103: 1963 | M103: 0
B104: 3 | C104: Eggen | D104: Edgar | E104: Villars-s-Mont | F104: 1958 | M104: 0
B105: 4 | C105: Geinoz | D105: Raymond | E105: Enney | F105: 1959 | M105: 0
B106: 5 | C106: Jaquet | D106: Raphaël | E106: Estavannens | F106: 1949 | M106: 0
B107: 6 | C107: Pharisa | D107: André | E107: Grandvillard | F107: 1945 | M107: 0
B108: 7 | C108: Pharisa | D108: Emile | E108: Estavannens | F108: 1943 | M108: 0
B109: 8 | C109: Pharisa | D109: Georges | E109: Grandvillard | F109: 1950 | G109: -20 | M109: -20
B110: 9 | C110: Pharisa | D110: Jean | E110: Bulle | F110: 1939 | M110: 0
B111: 10 | C111: Yenni | D111: Christian | E111: Grandvillard | F111: 1969
B112: 11
B113: 12
B119: Concours interne "vétérans" 2022 - 2027 | G119: 2022 | H119: 2023 | I119: 2024 | J119: 2025 | K119: 2026 | L119: 2027 | M119: TOTAL
A121: 600 | B121: 1 | C121: Blanc | D121: Marcel | E121: Estavannens | F121: 1956 | G121: 627 | H121: 747 | I121: 587 | M121: =SUM(G121:L121) -> 1961
B122: 2 | C122: Pharisa | D122: Georges | E122: Grandvillard | F122: 1950 | G122: 651 | H122: 468 | I122: 584 | M122: 1703
B123: 3 | C123: Pharisa | D123: André | E123: Grandvillard | F123: 1945 | G123: 575 | H123: 585 | I123: 530 | M123: 1690
B124: 4 | C124: Eggen | D124: Edgar | E124: Villars-s-Mont | F124: 1958 | G124: 656 | H124: 512 | I124: 447 | M124: 1615
B125: 5 | C125: Pharisa | D125: Jean | E125: Bulle | F125: 1939 | G125: 536 | H125: 325 | I125: 337 | M125: 1198
B126: 6 | C126: Currat | D126: Henri | E126: Grandvillard | F126: 1963 | G126: pas encore V | H126: 509 | I126: 444 | M126: 953
B127: 7 | C127: Pharisa | D127: Emile | E127: Estavannens | F127: 1943 | G127: 295 | H127: 449 | I127: 168 | M127: 912
B128: 8 | C128: Geinoz | D128: Raymond | E128: Enney | F128: 1959 | G128: 447 | H128: 431 | I128: malade | M128: 878
B129: 9 | C129: Jaquet | D129: Raphaël | E129: Estavannens | F129: 1949 | G129: 196 | H129: 55 | I129: 101 | M129: 352
B130: 10 | M130: =SUM(G130:L130) -> 0
B131: 11 | M131: 0
B132: 12 | M132: 0
